Cogmind - Beta 15 @@@ ROGUE MODE // 2025.07.29 @ 12:48:18 Player: chebyrekser Result: Destroyed by S-27 Virus with Autogun Performance ------------- Evolutions (6) 3000 Regions Visited (15) 3000 Robots Destroyed (294) 1470 Value Destroyed (12006) 12006 Prototype IDs (37) 740 Alien Tech Used (0) 0 Bonus (2512) 2512 TOTAL SCORE: 22728 Bonus ------- High Alert Combat Kills 413 Follower Combat Kills 405 Met Data Miner 300 MAIN.C Attacked Warlord 500 Warlord Defense Kills 1234 Friendly Fire -340 Cogmind --------- Core Integrity 0/1150 Matter 300/300 Energy 100/100 System Corruption 2% Temperature Cool (-200) Movement Core (1350) Ox26 Location -4/Factory Parts ------- > --- POWER (2) -------- (None) > --- PROPULSION (4) --- (None) > --- UTILITY (10) ----- Advanced Cryofiber Web Huge Storage Unit Advanced Signal Interpreter Advanced Targeting Computer Core Analyzer Armor Integrity Analyzer > --- WEAPON (3) ------- (None) > --- INVENTORY (25) --- Micro Fission Core Advanced Cryofiber Web Advanced Cryofiber Web Structural Scanner Long-range Sensor Array Advanced Signal Interpreter Advanced Targeting Computer Improved Target Analyzer Experimental Armor Integrity Analyzer Advanced Transmission Jammer Improved Medium Armor Plating Thermal Barrier Dispersion Rifle Dispersion Rifle Advanced Plasma Cannon Vortex Driver (30) Vortex Driver (30) Plasma Cutter Heavy Mace Peak State ------------ > --- POWER ------------ Micro Fission Core Light Antimatter Reactor > --- PROPULSION ------- Flexi-carbon Leg Flexi-carbon Leg Myomer Leg Myomer Leg > --- UTILITY ---------- Advanced Cryofiber Web Advanced Heat Sink Improved Cooling System Huge Storage Unit Long-range Sensor Array Improved Signal Interpreter Advanced Targeting Computer Advanced Targeting Computer Core Analyzer Armor Integrity Analyzer > --- WEAPON ----------- Plasma Rifle Plasma Rifle Neutron Cannon > --- INVENTORY -------- Neutrino Core Reinforced Antimatter Reactor Flexi-carbon Leg Myomer Leg Wheel Compact Wheel Compact Wheel Advanced Cryofiber Web Advanced Cryofiber Web Advanced Heat Sink Advanced Heat Sink Structural Scanner Advanced Targeting Computer Improved Target Analyzer Experimental Armor Integrity Analyzer Advanced Transmission Jammer Layered Medium Armor Plating Thermal Barrier Plasma Rifle Dispersion Rifle Dispersion Rifle Vortex Driver Vortex Driver Plasma Cutter Heavy Mace [Rating: 108] Favorites ----------- Power Improved Deuterium Engine Engine Improved Deuterium Engine Power Core Enhanced Fission Core Reactor Vortex Chain Reactor Propulsion Light Treads Treads Light Treads Leg Flexi-carbon Leg Wheel Compact Wheel Utility Huge Storage Unit Device Advanced Sensor Array Storage Huge Storage Unit Processor Core Analyzer Hackware System Shield Protection Improved Medium Armor Plating Weapon Advanced Beam Rifle Energy Gun Advanced Beam Rifle Energy Cannon Neutron Cannon Ballistic Gun Improved Assault Rifle Launcher Heavy Missile Launcher Impact Weapon Heavy Mace Build | -11 -10 -9 -8 -7 -6 -6 -6 -6 -5 -5 -5 -5 -5 -4 -4 ------- Run | Yrd Mat Mat Mat Fac Fac Low Low Dat Pro Fac Upp Upp War Pro Fac Slots Evolved 12 | . . 2 2 2 2 . . . . 2 . . . . 2 Power 1 | . . . . . . . . . . 1 . . . . . Propulsion 2 | . . 1 1 . . . . . . . . . . . . Utility 8 | . . 1 1 1 2 . . . . 1 . . . . 2 Weapon 1 | . . . . 1 . . . . . . . . . . . Parts Attached 208 | 7 5 17 39 32 9 1 6 . 4 28 7 1 10 6 36 Power 26 | 1 . 2 4 3 1 . . . 1 8 . . 1 2 3 Engine 9 | 1 . 2 1 2 1 . . . . 2 . . . . . Core 14 | . . . 3 1 . . . . 1 6 . . . 1 2 Reactor 3 | . . . . . . . . . . . . . 1 1 1 Propulsion 60 | 2 1 8 12 11 1 . . . 1 7 2 . 3 . 12 Treads 46 | 2 . 8 12 11 1 . . . 1 6 2 . 3 . . Leg 9 | . . . . . . . . . . . . . . . 9 Wheel 5 | . 1 . . . . . . . . 1 . . . . 3 Hover . | . . . . . . . . . . . . . . . . Flight . | . . . . . . . . . . . . . . . . Utility 78 | 1 3 4 11 12 5 . 5 . 1 9 4 1 4 2 16 Device 30 | . . 1 1 7 2 . 2 . 1 4 . 1 1 . 10 Storage 3 | 1 2 . . . . . . . . . . . . . . Processor 17 | . 1 1 2 1 2 . . . . 2 3 . . . 5 Hackware 1 | . . . 1 . . . . . . . . . . . . Protection 27 | . . 2 7 4 1 . 3 . . 3 1 . 3 2 1 Artifact . | . . . . . . . . . . . . . . . . Weapon 44 | 3 1 3 12 6 2 1 1 . 1 4 1 . 2 2 5 Energy Gun 25 | 2 1 1 4 4 1 1 . . 1 3 . . 2 1 4 Energy Cannon 7 | . . . 2 1 . . . . . 1 1 . . 1 1 Ballistic Gun 8 | 1 . 2 4 1 . . . . . . . . . . . Ballistic Cannon . | . . . . . . . . . . . . . . . . Launcher 3 | . . . 1 . 1 . 1 . . . . . . . . Special Weapon . | . . . . . . . . . . . . . . . . Impact Weapon 1 | . . . 1 . . . . . . . . . . . . Slashing Weapon . | . . . . . . . . . . . . . . . . Piercing Weapon . | . . . . . . . . . . . . . . . . Special Melee Weapon . | . . . . . . . . . . . . . . . . Unidentified Prototypes 19 | . . 1 6 2 1 . . . . 4 . . 3 . 2 Parts Lost 109 | . . 5 8 4 3 1 2 . 7 17 7 . 5 11 39 Power 14 | . . . 1 1 . . . . 1 4 . . . 1 6 Propulsion 36 | . . 2 3 . 1 1 1 . 2 6 3 . 1 4 12 Utility 36 | . . 2 . 3 . . . . 3 5 3 . 2 4 14 Weapon 23 | . . 1 4 . 2 . 1 . 1 2 1 . 2 2 7 Highest Loss Streak 15 | . . 2 3 2 2 1 1 . 3 4 3 . 2 5 15 To Critical Strikes 2 | . . . . . . . . . . . . . . 1 1 Average Backups 21 | 3 13 23 24 23 22 22 23 24 22 22 22 18 23 16 18 Power 2 | . 1 2 2 1 1 2 2 2 1 3 2 2 2 1 1 Propulsion 2 | . 2 5 3 3 3 2 3 4 2 1 2 . 1 . 3 Utility 10 | 1 6 11 9 10 9 11 11 11 11 11 12 11 11 7 8 Weapon 6 | . 2 4 7 7 7 6 6 6 5 5 4 4 7 6 5 Tool/Special . | . . . . . . . . . . . . . . . . Unused Backups 55 | . 1 4 18 3 2 . 1 . 1 6 1 . 4 . 14 Power 9 | . . . 4 1 . . . . . 1 . . 2 . 1 Propulsion 1 | . . 1 . . . . . . . . . . . . . Utility 28 | . 1 1 10 . 1 . 1 . . 3 1 . 2 . 8 Weapon 16 | . . 2 4 2 1 . . . 1 2 . . . . 4 Tool/Special 1 | . . . . . . . . . . . . . . . 1 Average Slot Usage (%) 95 | . 91 99 98 99 98 98 99 82 99 97 98 100 84 78 87 Engine 3 | . 14 11 5 4 . 6 6 6 2 2 . . . . . Core 4 | . . . 3 2 5 . . . 3 7 11 11 4 5 5 Treads 23 | . 22 30 35 29 25 25 25 26 25 20 17 23 22 11 1 Leg 1 | . . . . . . . . . . . . . . . 14 Device 8 | . . 2 3 7 7 6 6 6 6 11 10 11 9 12 18 Storage 6 | . 14 11 9 6 6 6 6 6 6 5 5 5 5 5 5 Processor 17 | . 6 10 13 14 18 20 20 20 20 18 22 23 23 17 21 Protection 7 | . . 8 9 7 13 13 13 13 12 8 4 5 5 5 1 Energy Gun 11 | . 14 11 1 16 18 18 16 2 16 14 15 11 3 10 6 Ballistic Gun 3 | . 14 11 16 1 . . . . . . . . . . . Impact Weapon 1 | . . . . 3 . . . . . 1 . . 2 . 1 Peak Build Rating 108 | 6 10 17 28 43 53 53 53 50 55 92 92 86 98 99 108 Average Rating 54 | 5 8 14 22 39 50 50 49 39 51 76 88 81 74 82 92 On Entrance 48 | . 6 10 17 28 41 49 52 50 50 55 92 79 83 98 72 Naked Turns . | . . . . . . . . . . . . . . . . Heaviest Build 155 | 11 87 96 100 108 116 117 123 115 120 134 137 133 150 155 141 Greatest Support 103 | 40 40 60 80 80 80 80 80 80 83 103 103 96 102 102 100 Greatest Overweight (x) 38 | . 8 8 1 1 1 1 2 1 1 7 1 1 1 38 34 Average Overweight (x) 1 | . 4 2 1 . 1 1 1 1 1 1 1 1 . 2 2 Largest Inventory Capacity 25 | 8 25 25 25 25 25 25 25 25 25 25 25 25 25 25 25 Average Capacity 24 | 7 20 25 25 24 25 25 25 25 25 25 25 25 25 25 25 Most Carried 25 | 5 22 25 25 25 25 25 25 25 25 25 25 22 25 24 25 Average Carried 22 | 3 13 23 24 24 23 23 24 25 23 23 23 19 24 17 18 Final Capacity 25 | 8 25 25 25 25 25 25 25 25 25 25 25 25 25 25 25 Final Carried 25 | 5 22 25 25 23 25 24 25 25 24 25 19 22 23 13 21 Class Distribution -------------------- 34% | Scavenger-Mutant 34% | Scavenger-Gunner 12% | Mutant 11% | Gunner 3% | Scavenger-Skirmisher Dominant Class ---------------- Mutant | -10/Materials Scavenger-Mutant | -9/Materials Scavenger-Mutant | -8/Materials Scavenger-Mutant | -7/Factory Scavenger-Gunner | -6/Factory Scavenger-Gunner | -6/Lower Caves Scavenger-Gunner | -6/Lower Caves Scavenger-Mutant | -6/Data Miner Scavenger-Gunner | -5/Proximity Caves Scavenger-Gunner | -5/Factory Gunner | -5/Upper Caves Scavenger-Gunner | -5/Upper Caves Scavenger-Mutant | -5/Warlord Mutant | -4/Proximity Caves Scavenger-Gunner | -4/Factory Resources | -11 -10 -9 -8 -7 -6 -6 -6 -6 -5 -5 -5 -5 -5 -4 -4 ----------- Run | Yrd Mat Mat Mat Fac Fac Low Low Dat Pro Fac Upp Upp War Pro Fac Matter Collected 6807 | 278 129 293 1440 932 263 85 300 . 458 971 246 115 500 232 565 Remotely . | . . . . . . . . . . . . . . . . Salvage Created 13407 | 82 713 837 2472 2046 455 127 434 . 906 1977 452 80 585 608 1633 Parts 592 | 5 40 46 127 75 32 4 9 . 27 84 24 2 19 18 80 Haulers Intercepted 14 | . 2 2 6 3 . . . . . 1 . . . . . Recyclers Shooed 12 | 1 2 5 . 1 . . . . 1 2 . . . . . Parts Field Recycled . | . . . . . . . . . . . . . . . . Retrieved Matter . | . . . . . . . . . . . . . . . . Parts Self-Destructed 88 | . . . . . . 15 3 . 30 . 20 . . 20 . Prevented 5 | . . . . . . 2 . . 3 . . . . . . Kills | -11 -10 -9 -8 -7 -6 -6 -6 -6 -5 -5 -5 -5 -5 -4 -4 ------- Run | Yrd Mat Mat Mat Fac Fac Low Low Dat Pro Fac Upp Upp War Pro Fac Combat Hostiles Destroyed 226 | . 11 14 42 32 8 2 10 . 18 26 12 1 9 14 27 Guns 171 | . 11 14 39 29 5 2 7 . 7 23 6 1 7 14 6 Cannons 17 | . . . . . . . . . . . . . . . 17 AOE 30 | . . . 3 . 3 . 3 . 9 2 6 . 2 . 2 Classes Destroyed 19 | 2 5 2 2 2 . . 1 . . 2 . . 1 1 1 Worker 5 | . . . 2 1 1 . . . . 1 . . . . . Builder 10 | . . . 2 . 1 . . . 1 1 . . . . 5 Tunneler 2 | 1 . . 1 . . . . . . . . . . . . Hauler 14 | . 2 2 6 3 . . . . . 1 . . . . . Recycler 15 | 1 2 1 3 2 1 . . . 1 3 . . . . 1 Operator 3 | . 1 . 1 1 . . . . . . . . . . . Drone 2 | . . . . . . . . . . . . . . 2 . Watcher 17 | . 2 2 5 . 1 . . . 2 4 . . . . 1 Swarmer 39 | . 3 . 9 2 4 . . . 7 4 4 . . 2 4 Saboteur 1 | . . . . . . . . . . . . . . . 1 Grunt 84 | . 8 8 24 12 . 1 2 . 8 3 5 . 2 7 4 Brawler 7 | . . 1 1 2 . . . . . . . . 1 1 1 Duelist 3 | . . . . 1 . . 1 . . . . . . 1 . Protector 1 | . . . . . . . . . . . . . 1 . . Sentry 36 | . . 5 8 8 2 1 . . 3 3 2 . . 1 3 Hunter 10 | . . . . . . . . . . 2 . . 2 . 6 Programmer 33 | . . . . 7 2 . . . . 13 1 . 2 . 8 Behemoth 2 | . . . . . . . . . . 1 . . 1 . . Thug 6 | . . . . . . . 5 . . . . . 1 . . Savage 1 | . . . . . . . 1 . . . . . . . . Butcher 1 | . . . . . . . 1 . . . . . . . . Mutant 2 | . . . . . . . 1 . . . . 1 . . . Best Kill Streak 11 | 1 3 3 11 3 6 1 7 . 5 7 5 1 4 4 4 Combat Bots Only 7 | . 3 3 4 3 4 1 7 . 4 6 5 1 4 4 4 Max Kills in Single Turn 4 | 1 2 1 2 2 3 1 2 . 4 3 3 1 1 1 2 Gunslinging 1 | . 1 . 1 . . . 1 . . . . . . . . Exploded 4 | . . . 2 . 2 . 2 . 4 2 3 . 1 . 1 Melee . | . . . . . . . . . . . . . . . . Uniques/NPCs Destroyed . | . . . . . . . . . . . . . . . . Combat | -11 -10 -9 -8 -7 -6 -6 -6 -6 -5 -5 -5 -5 -5 -4 -4 -------- Run | Yrd Mat Mat Mat Fac Fac Low Low Dat Pro Fac Upp Upp War Pro Fac Hostile Shots Fired 1646 | . 48 76 223 254 104 22 32 . 78 182 66 4 96 124 337 Missed 514 | . 13 19 44 90 46 13 9 . 26 47 21 1 32 30 123 Hits 1132 | . 35 57 179 164 58 9 23 . 52 135 45 3 64 94 214 Melee 33 | . . 2 . 8 . . 6 . . . . . . 8 9 Projectile 1099 | . 35 55 179 156 58 9 17 . 52 135 45 3 64 86 205 AOE 9 | . . . . . . . . . . . . . 9 . . Critical Strikes 68 | . 1 3 7 9 1 . 2 . 3 9 4 . 7 11 11 Part Disruptions 2 | . . . . . . . 1 . . 1 . . . . . Damage Taken 20474 | . 462 761 2480 1998 506 95 620 . 1063 2490 973 73 1792 2027 5134 Core 2348 | . 60 82 169 158 31 . 64 . 36 191 18 28 190 170 1151 Absorbed by Shields . | . . . . . . . . . . . . . . . . Ignored by Resistances 71 | . . . 64 . 7 . . . . . . . . . . Regen/Repaired (Parts) 1370 | . 129 . 141 564 . . . . . . . . 377 . 159 Core Remaining (%) 75 | 100 76 79 69 77 . . . . 84 . . . . 40 . Volleys Fired 728 | 8 61 71 173 98 23 4 18 . 40 79 22 3 33 39 56 Largest 3 | 2 2 2 2 3 3 3 3 . 3 3 3 3 3 3 3 Hottest 268 | 70 85 88 79 183 187 206 206 . 216 264 266 266 264 236 268 Shots Fired 1653 | 16 119 139 334 256 47 12 47 . 88 219 46 9 73 97 151 Gun 1511 | 16 119 139 328 252 45 12 41 . 79 218 35 6 68 82 71 Cannon 109 | . . . 3 4 . . . . . . 3 3 1 15 80 Launcher 33 | . . . 3 . 2 . 6 . 9 1 8 . 4 . . Special . | . . . . . . . . . . . . . . . . Kinetic 451 | 8 61 71 288 23 . . . . . . . . . . . Thermal 1135 | 8 58 68 43 233 45 12 41 . 79 218 38 9 67 67 149 Explosive 30 | . . . . . 2 . 6 . 9 1 8 . 4 . . Electromagnetic 3 | . . . 3 . . . . . . . . . . . . Entropic 34 | . . . . . . . . . . . . . 2 30 2 Robot Hit Streak 32 | 5 14 22 22 20 11 24 26 . 25 32 9 5 8 9 12 Robot Miss Streak 10 | 2 4 3 5 6 2 1 3 . 4 3 2 . 4 10 5 Penetration Max . | . . . . . . . . . . . . . . . . Secondary Targets 17 | . 2 . 3 2 . . 3 . 2 1 1 . 2 1 . Max Gunslinging Chain 2 | . 1 . 1 1 . . 2 . 1 1 1 . 1 1 . Shots Hit Robots 1170 | 11 80 100 255 186 32 11 35 . 69 151 27 4 48 60 101 Core Hits 608 | 3 39 35 116 77 20 6 38 . 55 66 22 1 39 32 59 Critical Kills 8 | . . . . . . . . . . 3 1 1 3 . . Critical Parts Destroyed 25 | . . 1 1 1 . . . . 1 11 3 . 2 3 2 Critical Strikes 75 | 1 5 6 7 12 4 . 1 . 5 16 5 1 5 4 3 Burn 40 | 1 5 5 6 11 4 . 1 . 4 1 . . . 1 1 Destroy 30 | . . 1 1 1 . . . . . 14 5 1 5 2 . Smash 4 | . . . . . . . . . 1 1 . . . . 2 Detonate 1 | . . . . . . . . . . . . . . 1 . Melee Attacks 57 | . . . . 13 3 . . . 6 16 . . . . 19 Impact 57 | . . . . 13 3 . . . 6 16 . . . . 19 Slashing . | . . . . . . . . . . . . . . . . Piercing . | . . . . . . . . . . . . . . . . Sneak Attacks 7 | . . . . 2 . . . . . 2 . . . . 3 Combat Hostiles . | . . . . . . . . . . . . . . . . Follow-up Attacks . | . . . . . . . . . . . . . . . . Damage Inflicted 31721 | 111 854 1314 4054 3929 1147 255 1466 . 2812 4767 1421 116 2608 2464 4403 Guns 22949 | 111 825 1314 3795 3798 728 255 823 . 1463 4303 612 81 1650 2086 1105 Cannons 2516 | . . . . . . . . . . . 80 35 . 302 2099 Explosions 5208 | . . . 211 . 419 . 643 . 1156 252 729 . 958 76 764 Melee 971 | . . . . 131 . . . . 193 212 . . . . 435 Ramming 77 | . 29 . 48 . . . . . . . . . . . . Kinetic 4518 | 50 312 508 3348 300 . . . . . . . . . . . Thermal 19999 | 61 513 806 447 3498 728 255 823 . 1463 4303 692 116 1536 1227 3531 Explosive 4484 | . . . . . 419 . 643 . 1156 252 729 . 958 . 327 Electromagnetic 235 | . . . 211 . . . . . . . . . . . 24 Impact 971 | . . . . 131 . . . . 193 212 . . . . 435 Slashing . | . . . . . . . . . . . . . . . . Piercing . | . . . . . . . . . . . . . . . . Entropic 1437 | . . . . . . . . . . . . . 114 1237 86 Highest Corruption 15 | . 1 2 1 13 1 1 1 1 1 10 11 11 12 15 2 Average Corruption 5 | . 1 2 1 2 1 1 1 1 1 4 10 11 11 14 1 Corruption Purged . | . . . . . . . . . . . . . . . . Corruption Blocked . | . . . . . . . . . . . . . . . . Effects 449 | . 11 16 10 56 . 9 17 . 17 55 63 44 58 87 6 Message Errors 111 | . 2 5 1 21 . 1 3 . 3 14 17 9 9 25 1 Matter Fused 105 | . 2 2 4 12 . 1 5 . 9 7 14 15 17 15 2 Heat Flow Errors 53 | . 1 . 1 3 . 1 3 . 2 3 5 5 13 15 1 Energy Discharges 56 | . 3 2 . 7 . 1 2 . . 13 8 5 4 10 1 Parts Rejected 3 | . . . 1 1 . . . . . . . . . 1 . Parts Fused 6 | . . . 1 . . . . . . 1 . . 1 3 . Data Loss (minor) 49 | . . 1 . 7 . 2 2 . 1 10 7 5 7 6 1 Data Loss (major) 19 | . . 3 1 3 . 2 1 . . 2 3 . 2 2 . Misfires 22 | . 2 2 1 . . . 1 . 2 2 4 2 1 5 . Alerts 8 | . . . . . . 1 . . . . 3 3 1 . . Misdirections 5 | . . . . . . . . . . 2 . . 1 2 . Weapon Failures 12 | . 1 1 . 2 . . . . . 1 2 . 2 3 . Overload Shots . | . . . . . . . . . . . . . . . . Overflow Damage 690 | . . . 12 17 5 . . . 50 122 15 . . 59 410 Projectiles 37 | . . . . . . . . . . . . . . . 37 Explosions 169 | . . . 12 . 5 . . . 8 6 15 . . 59 64 Melee 484 | . . . . 17 . . . . 42 116 . . . . 309 Knockbacks 7 | . . . 1 1 . . . . 2 1 . . . . 2 Impact 6 | . . . 1 1 . . . . 1 1 . . . . 2 Kinetic . | . . . . . . . . . . . . . . . . Secondary 1 | . . . . . . . . . 1 . . . . . . Self-Inflicted Damage 366 | . 8 . 45 . . . . . . . 49 . . . 264 Shots 9 | . . . 3 . . . . . . . 2 . . . 4 Rammed 7 | . 5 . 2 . . . . . . . . . . . . Targets Rammed 10 | . 5 . 5 . . . . . . . . . . . . Kicked . | . . . . . . . . . . . . . . . . Crushed 3 | . . . 3 . . . . . . . . . . . . Highest Temperature 509 | 80 269 351 291 509 216 110 354 . 384 402 258 172 420 339 273 Average Temperature 83 | 38 53 95 68 94 63 40 103 . 117 51 98 63 120 85 99 Received Heat Transfer 4349 | . 240 360 1260 453 72 18 153 . 339 126 270 9 147 415 487 Effects 14 | . . 1 . 7 . . . . 3 . . . . 3 . Shutdowns 1 | . . . . 1 . . . . . . . . . . . Energy Bleed 2 | . . 1 . . . . . . 1 . . . . . . Interference 8 | . . . . 3 . . . . 2 . . . . 3 . Matter Decay 1 | . . . . 1 . . . . . . . . . . . Damage (major) 2 | . . . . 2 . . . . . . . . . . . Siege Activations . | . . . . . . . . . . . . . . . . Martial Activations . | . . . . . . . . . . . . . . . . Shielding Activations . | . . . . . . . . . . . . . . . . Robots Disrupted 1 | . . . . . . . . . . . 1 . . . . Combat Hostiles 1 | . . . . . . . . . . . 1 . . . . Robots Corrupted 6 | . . . . 1 . . . . 1 1 . . . . 3 Combat Hostiles 2 | . . . . . . . . . . . . . . . 2 Parts Fried 9 | . . . . 3 . . . . . 2 . . . . 4 Impact Corruptions 16 | . . . . 1 . . . . 2 3 . . . . 10 Robots Melted 7 | . . . . 3 . . . . 2 1 . . 1 . . Combat Hostiles 6 | . . . . 3 . . . . 2 1 . . . . . Parts Melted 90 | . 1 4 3 30 2 . 4 . 15 19 . 1 5 1 5 Heat Transferred 32978 | 259 1813 2331 1591 6956 1517 484 1726 . 3381 6268 814 111 1869 1308 2550 Parts Sabotaged 2 | . . . . . . . . . . . . . . 2 . Parts Stolen . | . . . . . . . . . . . . . . . . Parts Stripped . | . . . . . . . . . . . . . . . . Power Chain Reactions 5 | . . . . . . . . . . . . . . . 5 Alert | -11 -10 -9 -8 -7 -6 -6 -6 -6 -5 -5 -5 -5 -5 -4 -4 ------- Run | Yrd Mat Mat Mat Fac Fac Low Low Dat Pro Fac Upp Upp War Pro Fac Maximum Alert Level 2 | . . . 2 2 1 . . . . 1 . . . . 2 Low Security (%) 49 | 100 100 100 64 13 37 . . . . 71 . . . . . Level 1 33 | . . . 17 63 62 . . . . 28 . . . . 41 Level 2 16 | . . . 17 23 . . . . . . . . . . 58 Level 3 . | . . . . . . . . . . . . . . . . Level 4 . | . . . . . . . . . . . . . . . . Level 5 . | . . . . . . . . . . . . . . . . High Security . | . . . . . . . . . . . . . . . . Max Security . | . . . . . . . . . . . . . . . . Peak Influence 654 | 5 135 80 620 566 332 . . . . 285 . . . . 654 Initial 600 | . . . 1 274 275 . . . . 11 . . . . 600 Average 224 | . 33 24 201 332 212 . . . . 143 . . . . 439 Influence Increases 7539 | 10 407 406 1239 1099 266 50 85 . 562 958 270 . 245 260 1682 Destroy 0b10 Robot/C 4480 | . 220 280 840 640 160 40 60 . 460 560 240 . 200 240 540 Destroy 0b10 Robot/NC 355 | 10 35 25 100 35 20 . . . 25 50 . . 5 10 40 Destroy Leader 936 | . 58 78 212 174 52 10 10 . 30 160 30 . . 10 112 Allied During Kill 72 | . . . . . . . . . 47 15 . . 10 . . Successful Hack 123 | . 19 21 30 29 . . . . . . . . . . 24 Disable Machine 315 | . . . 15 60 15 . . . . 75 . . . . 150 Destroy Structure 298 | . . 2 12 11 19 . . . . 68 . . . . 186 Advance Influence 600 | . . . . . . . . . . . . . . . 600 Lose Combat Pursuer 360 | . 75 . 30 150 . . 15 . . 30 . . 30 . 30 Influence Decreases 7039 | 10 407 400 641 1140 728 151 85 . 543 834 351 62 161 344 1182 Entered New Map 819 | . . . 5 330 288 38 . . . 8 53 13 . 84 . Time Decay 4816 | 10 407 357 556 770 410 113 75 . 391 523 278 49 65 190 622 Search Patrol Dispatched 150 | . . . . . . . . . . . . . . . 150 Lost Part 919 | . . 30 80 40 30 . 10 . 59 140 20 . 50 70 390 Lost Ally 172 | . . . . . . . . . 93 13 . . 46 . 20 Purge Threat 163 | . . 13 . . . . . . . 150 . . . . . Squads Dispatched 40 | . 2 1 7 10 4 . . . . 9 . . . 1 6 Investigation 3 | . 1 . 2 . . . . . . . . . . . . Extermination 20 | . . . . 7 2 . . . . 7 . . . . 4 Reinforcement 9 | . 1 1 4 1 . . . . . 2 . . . . . Assault 4 | . . . . 1 . . . . . . . . . 1 2 Garrison 4 | . . . 1 1 2 . . . . . . . . . . Intercept . | . . . . . . . . . . . . . . . . Searches Triggered 1 | . . . . . . . . . . . . . . . 1 Construction Impeded 1 | . . . . . . . . . . 1 . . . . . Haulers Reinforced 1 | . . . . . . . . . . 1 . . . . . Active Scanning Responses . | . . . . . . . . . . . . . . . . Cargo Convoy Interrupts 1 | . . . . . . . . . . . . . . . 1 Stealth | -11 -10 -9 -8 -7 -6 -6 -6 -6 -5 -5 -5 -5 -5 -4 -4 --------- Run | Yrd Mat Mat Mat Fac Fac Low Low Dat Pro Fac Upp Upp War Pro Fac Distress Signals 22 | . 5 7 3 . . . . . 1 4 . . . . 2 Communications Jammed . | . . . . . . . . . . . . . . . . Distress Signals . | . . . . . . . . . . . . . . . . Times Spotted 381 | . 26 30 61 46 10 2 10 . 20 41 11 1 52 18 53 Peak Tracking Total 18 | . 5 6 4 4 4 1 6 . 5 5 5 1 12 5 18 Tactical Retreats 17 | . 2 . 2 7 . . 1 . . 2 . . 2 . 1 Traps | -11 -10 -9 -8 -7 -6 -6 -6 -6 -5 -5 -5 -5 -5 -4 -4 ------- Run | Yrd Mat Mat Mat Fac Fac Low Low Dat Pro Fac Upp Upp War Pro Fac Traps Triggered 8 | . 1 . 1 4 . . 1 . . . . . . . 1 Indirectly . | . . . . . . . . . . . . . . . . Trap Hack Attempts . | . . . . . . . . . . . . . . . . Triggered . | . . . . . . . . . . . . . . . . Disarmed . | . . . . . . . . . . . . . . . . Reprogrammed . | . . . . . . . . . . . . . . . . Reused . | . . . . . . . . . . . . . . . . Traps Extracted . | . . . . . . . . . . . . . . . . Installed . | . . . . . . . . . . . . . . . . Triggered . | . . . . . . . . . . . . . . . . Machines | -11 -10 -9 -8 -7 -6 -6 -6 -6 -5 -5 -5 -5 -5 -4 -4 ---------- Run | Yrd Mat Mat Mat Fac Fac Low Low Dat Pro Fac Upp Upp War Pro Fac Machines Disabled 26 | . . . 1 4 1 . . . 3 5 . 1 1 . 10 Max in Single Turn 4 | . . . 1 1 1 . . . 1 2 . 1 1 . 4 Garrison Access 3 | . . . 1 1 . . . . . . . . . . 1 Machines Repaired . | . . . . . . . . . . . . . . . . Machines Dismantled . | . . . . . . . . . . . . . . . . Machines Sabotaged . | . . . . . . . . . . . . . . . . Overloaded Fab Kills . | . . . . . . . . . . . . . . . . Hacking | -11 -10 -9 -8 -7 -6 -6 -6 -6 -5 -5 -5 -5 -5 -4 -4 --------- Run | Yrd Mat Mat Mat Fac Fac Low Low Dat Pro Fac Upp Upp War Pro Fac Machines Accessed 46 | . 8 4 10 6 . . 1 4 1 5 . 1 2 . 4 Terminals 25 | . 6 4 6 3 . . . . 1 4 . . . . 1 Fabricators . | . . . . . . . . . . . . . . . . Repair Stations 6 | . 1 . 1 2 . . . . . 1 . . . . 1 Recycling Units 2 | . 1 . . . . . . . . . . . . . 1 Scanalyzers 2 | . . . 2 . . . . . . . . . . . . Garrison Access 3 | . . . 1 1 . . . . . . . . . . 1 Total Hacks 129 | . 22 13 29 14 . . 1 26 1 9 . 1 5 . 8 Successful 81 | . 8 7 18 8 . . 1 26 1 1 . 1 5 . 5 Failed 48 | . 14 6 11 6 . . . . . 8 . . . . 3 Catastrophic 12 | . 1 2 3 . . . . . . 5 . . . . 1 Database Lockouts . | . . . . . . . . . . . . . . . . Manual 43 | . 13 9 12 2 . . . . . 5 . . 1 . 1 Terminals 61 | . 16 13 17 5 . . . . 1 7 . . . . 2 Fabricators . | . . . . . . . . . . . . . . . . Repair Stations 21 | . 3 . 6 8 . . . . . 2 . . . . 2 Recycling Units 5 | . 3 . . . . . . . . . . . . . 2 Scanalyzers 4 | . . . 4 . . . . . . . . . . . . Garrison Access 5 | . . . 2 1 . . . . . . . . . . 2 Terminal Hacks 49 | . 3 4 6 1 . . 1 26 1 1 . 1 5 . . Record 11 | . . . . . . . . 11 . . . . . . . Part Schematic 8 | . . . . . . . . 8 . . . . . . . Robot Schematic 4 | . . . . . . . . 4 . . . . . . . Robot Analysis 3 | . . 1 2 . . . . . . . . . . . . Prototype ID Bank 7 | . . . . . . . . 3 . . . . 4 . . Open Door 4 | . . . . . . . 1 . 1 . . 1 1 . . Branch Access Points 1 | . . . 1 . . . . . . . . . . . . Terminal Index 2 | . 1 . . 1 . . . . . . . . . . . Alert Level 1 | . . 1 . . . . . . . . . . . . . Unreport Threat 3 | . . 1 1 . . . . . . 1 . . . . . Recall Investigation 1 | . . . 1 . . . . . . . . . . . . Recall Reinforcements 1 | . 1 . . . . . . . . . . . . . . Hauler Manifests 2 | . 1 . 1 . . . . . . . . . . . . Zone Layout 1 | . . 1 . . . . . . . . . . . . . Fabricator Hacks . | . . . . . . . . . . . . . . . . Repair Station Hacks 14 | . 2 . 5 5 . . . . . . . . . . 2 Scan Component 8 | . 1 . 3 3 . . . . . . . . . . 1 Repair 6 | . 1 . 2 2 . . . . . . . . . . 1 Recycling Unit Hacks 2 | . 1 . . . . . . . . . . . . . 1 Retrieve Components 2 | . 1 . . . . . . . . . . . . . 1 Scanalyzer 4 | . . . 4 . . . . . . . . . . . . Insert Component 2 | . . . 2 . . . . . . . . . . . . Analyze 2 | . . . 2 . . . . . . . . . . . . Garrison Access Hacks 3 | . . . 1 1 . . . . . . . . . . 1 Seal Access 3 | . . . 1 1 . . . . . . . . . . 1 Unauthorized Hacks 9 | . 2 3 2 1 . . . . . . . . . . 1 Terminals 9 | . 2 3 2 1 . . . . . . . . . . 1 Botnet 9 | . 2 3 2 1 . . . . . . . . . . 1 Fabricators . | . . . . . . . . . . . . . . . . Repair Stations . | . . . . . . . . . . . . . . . . Recycling Units . | . . . . . . . . . . . . . . . . Scanalyzers . | . . . . . . . . . . . . . . . . Garrison Access . | . . . . . . . . . . . . . . . . Data Cores Recovered . | . . . . . . . . . . . . . . . . Used . | . . . . . . . . . . . . . . . . Hacking Detections 34 | . 8 4 9 5 . . . . 1 5 . . . . 2 Full Trace Events 2 | . 1 . 1 . . . . . . . . . . . . Feedback Events 1 | . 1 . . . . . . . . . . . . . . Corruption 1 | . 1 . . . . . . . . . . . . . . Feedback Blocked . | . . . . . . . . . . . . . . . . Robot Schematics Acquired 4 | . . . . . . . . 4 . . . . . . . Robots Built . | . . . . . . . . . . . . . . . . Authchips . | . . . . . . . . . . . . . . . . Time . | . . . . . . . . . . . . . . . . Total Robot Build Rating . | . . . . . . . . . . . . . . . . Part Schematics Acquired 10 | . . . 2 . . . . 8 . . . . . . . Parts Built . | . . . . . . . . . . . . . . . . Authchips . | . . . . . . . . . . . . . . . . Time . | . . . . . . . . . . . . . . . . Total Part Build Rating . | . . . . . . . . . . . . . . . . Parts Repaired 6 | . 1 . 2 2 . . . . . . . . . . 1 Time 167 | . 13 . 58 52 . . . . . . . . . . 44 Parts Recycled . | . . . . . . . . . . . . . . . . Recycled Matter . | . . . . . . . . . . . . . . . . Retrieved Matter . | . . . . . . . . . . . . . . . . Retrieved Components 5 | . 2 . . . . . . . . . . . . . 3 Parts Scanalyzed 2 | . . . 2 . . . . . . . . . . . . Part Schematics Acquired 2 | . . . 2 . . . . . . . . . . . . Parts Damaged . | . . . . . . . . . . . . . . . . Bothacking | -11 -10 -9 -8 -7 -6 -6 -6 -6 -5 -5 -5 -5 -5 -4 -4 ------------ Run | Yrd Mat Mat Mat Fac Fac Low Low Dat Pro Fac Upp Upp War Pro Fac Used RIF Installer . | . . . . . . . . . . . . . . . . Robots Hacked . | . . . . . . . . . . . . . . . . Non-combat . | . . . . . . . . . . . . . . . . Combat . | . . . . . . . . . . . . . . . . Robot Hacks Applied . | . . . . . . . . . . . . . . . . Relay Couplers Released . | . . . . . . . . . . . . . . . . Fabnet Peak Effective % . | . . . . . . . . . . . . . . . . Robots Rewired 16 | . . . . . . . 1 . 11 . . 3 . 1 . Allies Hacked . | . . . . . . . . . . . . . . . . Hacks Repelled . | . . . . . . . . . . . . . . . . Allies | -11 -10 -9 -8 -7 -6 -6 -6 -6 -5 -5 -5 -5 -5 -4 -4 -------- Run | Yrd Mat Mat Mat Fac Fac Low Low Dat Pro Fac Upp Upp War Pro Fac Total Allies 16 | . . . . . . . 1 . 11 . . 3 . 1 . Largest Group 11 | . . . . . . . 1 1 11 4 . 3 3 1 1 Highest-Rated Group 276 | . . . . . . . 31 31 276 146 . 87 87 47 47 Highest-Rated Ally 47 | . . . . . . . 31 31 43 43 . 29 29 47 47 Total Orders 6 | . . . . . . . . . 2 . . 1 1 . 2 STAY 4 | . . . . . . . . . 1 . . 1 1 . 1 FOLLOW 2 | . . . . . . . . . 1 . . . . . 1 Ally Attacks 67 | . . . . . . . . . 38 10 . . 13 . 6 Total Damage 1504 | . . . . . . . . . 857 248 . . 226 . 173 Kills 10 | . . . . . . . . . 5 2 . . 2 . 1 Allies Corrupted . | . . . . . . . . . . . . . . . . Allies Melted . | . . . . . . . . . . . . . . . . Intel | -11 -10 -9 -8 -7 -6 -6 -6 -6 -5 -5 -5 -5 -5 -4 -4 ------- Run | Yrd Mat Mat Mat Fac Fac Low Low Dat Pro Fac Upp Upp War Pro Fac Active Infowar (turns) 20792 | . . 242 1546 3158 809 573 2181 284 1472 3239 1620 1161 1149 1687 1671 Sensors 17850 | . . . . 2969 578 573 1949 284 1472 3124 1610 1161 1149 1687 1294 Structural 1629 | . . . 4 189 383 . 211 . . 413 10 . . . 419 Seismic 1784 | . . 242 1542 . . . . . . . . . . . . Cloaking 21 | . . . . . . . 21 . . . . . . . . Robot Analysis Total 3 | . . 1 2 . . . . . . . . . . . . Derelict Logs Recovered 8 | . . . . . . . 2 . . . 2 2 . 2 . Drone Launches . | . . . . . . . . . . . . . . . . Drone Recoveries . | . . . . . . . . . . . . . . . . Exploration | -11 -10 -9 -8 -7 -6 -6 -6 -6 -5 -5 -5 -5 -5 -4 -4 ------------- Run | Yrd Mat Mat Mat Fac Fac Low Low Dat Pro Fac Upp Upp War Pro Fac Turns Passed 29832 | 129 1432 1146 3905 4427 999 942 2346 284 1699 3769 1726 1186 1731 1999 2112 Spaces Moved 10245 | 59 550 348 1216 1489 352 381 925 115 543 1280 666 473 648 482 718 Core 5 | 2 . . . . . . . . . . . . . 2 1 Treads 9210 | 57 300 294 1216 1489 352 381 925 115 543 1235 666 473 648 480 36 Legs 570 | . . . . . . . . . . . . . . . 570 Wheels 460 | . 250 54 . . . . . . . 45 . . . . 111 Hover . | . . . . . . . . . . . . . . . . Flight . | . . . . . . . . . . . . . . . . Fastest Speed 50 | 50 160 200 240 160 240 240 240 240 240 205 242 242 162 245 123 Average Speed 242 | 156 209 233 240 239 240 240 240 240 240 240 242 242 241 356 220 Slowest Speed 1950 | 160 320 240 240 240 240 240 320 240 240 243 243 242 245 1950 1750 Overloaded Moves . | . . . . . . . . . . . . . . . . Propulsion Burnouts . | . . . . . . . . . . . . . . . . Robots Hopped . | . . . . . . . . . . . . . . . . Potential Cave-ins 2 | . . . . . . . . . . . . . 2 . . Cave-ins Triggered . | . . . . . . . . . . . . . . . . Exploration Rate (%) 53 | 7 82 33 78 35 8 65 82 68 49 35 83 64 76 71 26 Regions Visited 15 Branch Regions 8 Pre-discovered Areas 4 | . . . . . . . 1 1 . . . . . 2 . Known Exits Taken 12 | . . . 1 1 1 1 1 1 1 1 1 1 1 1 . Unknown Exits Taken 3 | 1 1 1 . . . . . . . . . . . . . Scrap Searched 14 | . . . . . . 2 4 . 1 . 2 1 . 4 . Spaces Dug 64 | . . . 3 7 2 . 13 . . 11 18 . . . 10 Terrain Destroyed 377 | . . . 3 7 20 . 39 . 19 23 92 2 21 40 111 Melee 28 | . . . . 7 2 . . . . 11 . . . . 8 Projectile 55 | . . . 3 . . . . . . . 1 2 2 28 19 AOE 294 | . . . . . 18 . 39 . 19 12 91 . 19 12 84 Terrain Rammed . | . . . . . . . . . . . . . . . . Walls Destroyed . | . . . . . . . . . . . . . . . . Machines Disabled . | . . . . . . . . . . . . . . . . Actions | -11 -10 -9 -8 -7 -6 -6 -6 -6 -5 -5 -5 -5 -5 -4 -4 --------- Run | Yrd Mat Mat Mat Fac Fac Low Low Dat Pro Fac Upp Upp War Pro Fac Total 13672 | 78 717 557 1890 2103 454 397 1006 124 842 1746 730 506 763 679 1080 Wait 1604 | . 72 86 335 357 37 5 26 . 132 231 21 . 26 100 176 Move 10230 | 58 549 347 1215 1488 351 380 924 114 542 1279 665 472 647 481 718 Hop . | . . . . . . . . . . . . . . . . Pick Up 254 | 5 21 20 42 42 10 1 5 . 9 30 3 3 16 5 42 Fast Attach 44 | 6 1 . 15 10 . . 3 5 . 1 . . 1 . 2 Attach 128 | . 2 7 10 8 4 2 3 . 7 18 7 . 11 14 35 Detach 9 | . . . 2 . . . . . . . . . 6 . 1 Swap 298 | 1 3 11 34 57 21 5 12 . 18 79 11 6 5 7 28 Drop 161 | . 3 15 59 30 5 . 6 5 3 13 1 . 18 . 3 Fire 728 | 8 61 71 173 98 23 4 18 . 40 79 22 3 33 39 56 Melee 57 | . . . . 13 3 . . . 6 16 . . . . 19 Ram 2 | . 2 . . . . . . . . . . . . . . Kick . | . . . . . . . . . . . . . . . . Crush 8 | . 3 . 5 . . . . . . . . . . . . Escape Stasis . | . . . . . . . . . . . . . . . . Rewire 149 | . . . . . . . 9 . 85 . . 22 . 33 . Trap . | . . . . . . . . . . . . . . . . Miscellaneous . | . . . . . . . . . . . . . . . . Route ------- -11/Scrapyard -10/Materials (discovered 4 exits: *Mat x2 / [*Min] / [*Sub]) -9/Materials -8/Materials (discovered 2 exits: *Fac x2) -7/Factory (discovered 3 exits: *Fac x3) -6/Factory -6/Lower Caves -6/Lower Caves (discovered 2 exits: *Fac / *Dat) -6/Data Miner -5/Proximity Caves -5/Factory (discovered 2 exits: *Upp / Ext) -5/Upper Caves -5/Upper Caves (discovered 2 exits: *Fac / *War) -5/Warlord -4/Proximity Caves -4/Factory (discovered 4 exits: Res x3 / Upp) History --------- Turn | Location | Event 10 | -11/Scrapyard | Discovered new exit (range 15) 130 | -11/Scrapyard | Entered Materials 299 | -10/Materials | Discovered new exit (range 13) 327 | -10/Materials | Build established: Mutant 510 | -10/Materials | Discovered new exit (range 8) 1036 | -10/Materials | Discovered new exit (range 10) 1299 | -10/Materials | Repaired Lgt. Treads 1406 | -10/Materials | Discovered new exit (range 10) 1562 | -10/Materials | Entered another Materials area 1562 | -9/Materials | Evolved 2 slots: Propulsion x1, Utility x1 2510 | -9/Materials | Discovered new exit (range 13) 2544 | -9/Materials | Build established: Scavenger-Mutant 2708 | -9/Materials | Entered another Materials area 2708 | -8/Materials | Evolved 2 slots: Propulsion x1, Utility x1 3475 | -8/Materials | Lost 3 parts (1n2w) 3894 | -8/Materials | Discovered new exit (range 16) 3969 | -8/Materials | Repaired Imp. Ion Engine 3996 | -8/Materials | Repaired Lgt. Armor Plating 4680 | -8/Materials | Identified exit to Factory 5023 | -8/Materials | Lost 3 parts (2n1w) 5216 | -8/Materials | Discovered exit to Factory (range 4) 5265 | -8/Materials | Garrison activated, responded to threat 6613 | -8/Materials | Entered Factory 6613 | -7/Factory | Evolved 2 slots: Utility x1, Weapon x1 7260 | -7/Factory | Repaired Lgt. Treads 7582 | -7/Factory | Garrison activated, responded to threat 7825 | -7/Factory | Build established: Scavenger-Skirmisher 8605 | -7/Factory | Discovered new exit (range 8) 8702 | -7/Factory | Identified exit to Factory 9207 | -7/Factory | Repaired Huge Storage Unit 9767 | -7/Factory | Build established: Scavenger-Mutant 10010 | -7/Factory | Discovered exit to Factory (range 9) 10597 | -7/Factory | Discovered exit to Factory (range 5) 10865 | -7/Factory | System corruption reached 10% 11013 | -7/Factory | First assault squad dispatched 11040 | -7/Factory | Entered another Factory area 11040 | -6/Factory | Evolved 2 slots: Utility x2 11479 | -6/Factory | Discovered new exit (range 15) 11512 | -6/Factory | Identified exit to Lower Caves 11579 | -6/Factory | Build established: Scavenger-Gunner 11908 | -6/Factory | Garrison activated, responded to threat 12039 | -6/Factory | Entered Lower Caves 12289 | -6/Lower Caves | Attracted the attention of an 0b10 checkpoint 12513 | -6/Lower Caves | Encountered a Warlord checkpoint 12957 | -6/Lower Caves | Discovered new exit (range 5) 12964 | -6/Lower Caves | Identified exit to Lower Caves 12981 | -6/Lower Caves | Entered another Lower Caves area 13003 | -6/Lower Caves | Discovered new exit (range 6) 13004 | -6/Lower Caves | Encountered a Warlord checkpoint 13087 | -6/Lower Caves | Identified exit to Factory 13878 | -6/Lower Caves | Destroyed 7 combat bots 14449 | -6/Lower Caves | Discovered new exit (range 7) 14464 | -6/Lower Caves | Identified exit to Data Miner 15327 | -6/Lower Caves | Entered Data Miner 15327 | -6/Data Miner | Accompanied by 1 ally 15329 | -6/Data Miner | Discovered new exit (range 6) 15348 | -6/Data Miner | Identified exit to Proximity Caves 15386 | -6/Data Miner | Met Data Miner 15427 | -6/Data Miner | Learned location of Section 7 (-2) 15427 | -6/Data Miner | Acquired the access code to Warlord's prototype stash 15465 | -6/Data Miner | Received God Mode back door access code from Data Miner 15611 | -6/Data Miner | Entered Proximity Caves 15611 | -5/Proximity Caves | Accompanied by 1 ally 16366 | -5/Proximity Caves | Snuck into a huge 0b10 base via the rear entrance 16467 | -5/Proximity Caves | Lost 3 parts (1p1n1u) 16709 | -5/Proximity Caves | Discovered exit to Factory (range 8) 17050 | -5/Proximity Caves | Lost 5 allies 17310 | -5/Proximity Caves | Entered Factory 17310 | -5/Factory | Accompanied by 4 allies 17310 | -5/Factory | Evolved 2 slots: Power x1, Utility x1 17311 | -5/Factory | Identified exit to Extension 17468 | -5/Factory | Build established: Scavenger-Mutant 18022 | -5/Factory | Lost 3 allies 18032 | -5/Factory | Lost 3 parts (1n2u) 18288 | -5/Factory | Build established: Scavenger-Gunner 19368 | -5/Factory | Discovered new exit (range 14) 19398 | -5/Factory | Identified exit to Upper Caves 19858 | -5/Factory | Spotted B-75 Beast 19930 | -5/Factory | Destroyed B-75 Beast 19959 | -5/Factory | Lost 4 parts (2p1n1w) 20170 | -5/Factory | Build established: Gunner 20601 | -5/Factory | System corruption reached 10% 21079 | -5/Factory | Entered Upper Caves 21338 | -5/Upper Caves | Learned Factory garrison access intel 22435 | -5/Upper Caves | Attracted the attention of an 0b10 checkpoint 22490 | -5/Upper Caves | Lost 3 parts (1n1u1w) 22573 | -5/Upper Caves | Learned 12 Factory zone layouts 22695 | -5/Upper Caves | Discovered new exit (range 14) 22801 | -5/Upper Caves | Identified exit to Upper Caves 22805 | -5/Upper Caves | Entered another Upper Caves area 22805 | -5/Upper Caves | Discovered new exit (range 7) 22816 | -5/Upper Caves | Encountered a Warlord checkpoint 22926 | -5/Upper Caves | Learned location of 1 exit from Proximity Caves 23002 | -5/Upper Caves | Identified exit to Warlord 23110 | -5/Upper Caves | Build established: Scavenger-Gunner 23185 | -5/Upper Caves | Attacked by a delusional Derelict stockpiling Unaware 23991 | -5/Upper Caves | Entered Warlord 23991 | -5/Warlord | Accompanied by 3 allies 24360 | -5/Warlord | Build established: Scavenger-Mutant 24634 | -5/Warlord | Opened Warlord's prototype stash 24648 | -5/Warlord | Found Prototype Device 24652 | -5/Warlord | Found Prototype Processor 24658 | -5/Warlord | Identified Thermal Barrier 24677 | -5/Warlord | Found Prototype Reactor 24677 | -5/Warlord | Identified Vortex Chain Reactor 25141 | -5/Warlord | Warlord's base attacked by MAIN.C 25197 | -5/Warlord | Found Prototype Energy Cannon 25200 | -5/Warlord | Found Prototype Energy Cannon 25211 | -5/Warlord | Found Prototype Energy Gun 25214 | -5/Warlord | Found Prototype Energy Gun 25373 | -5/Warlord | Spotted B-75 Beast 25387 | -5/Warlord | Spotted B-86 Titan 25474 | -5/Warlord | Lost 8 allies 25491 | -5/Warlord | Warlord forces counterattacked 25569 | -5/Warlord | Spotted Striker 25632 | -5/Warlord | Lost 14 allies 25641 | -5/Warlord | Spotted B-75 Beast 25641 | -5/Warlord | Spotted B-86 Titan 25662 | -5/Warlord | Identified Vortex Shotgun (x2) 25667 | -5/Warlord | Destroyed B-86 Titan 25682 | -5/Warlord | P-80 Master assimilated allied QZ-J3O(g) 25692 | -5/Warlord | Discovered new exit (range 14) 25711 | -5/Warlord | Lost 8 allies 25719 | -5/Warlord | Identified exit to Proximity Caves 25722 | -5/Warlord | Entered Proximity Caves 25723 | -4/Proximity Caves | Identified exit to Factory 25724 | -4/Proximity Caves | Spotter reported a threat 25725 | -4/Proximity Caves | Spotter reported a threat 25793 | -4/Proximity Caves | Build established: Scavenger-Gunner 25896 | -4/Proximity Caves | Spotter reported a threat 25949 | -4/Proximity Caves | Spotter reported a threat 25972 | -4/Proximity Caves | Lost 4 parts (2n2u) 26233 | -4/Proximity Caves | Build established: Gunner 26452 | -4/Proximity Caves | Learned location of Testing (-3) 26630 | -4/Proximity Caves | Attracted the attention of an 0b10 outpost 26634 | -4/Proximity Caves | Core integrity fell below 50% 26797 | -4/Proximity Caves | Lost 5 parts (2n1u2w) 27001 | -4/Proximity Caves | Build established: Mutant 27721 | -4/Proximity Caves | Entered Factory 27721 | -4/Factory | Accompanied by 1 ally 27721 | -4/Factory | Evolved 2 slots: Utility x2 27722 | -4/Factory | Identified exit to Research 27722 | -4/Factory | Identified exit to Upper Caves 27723 | -4/Factory | Loaded intel: 4 garrison access locations 27942 | -4/Factory | Identified Vortex Driver (x2) 27971 | -4/Factory | Search patrols dispatched 28267 | -4/Factory | Lost 8 parts (1p1n5u1w) 28865 | -4/Factory | Cargo convoy interrupted 29057 | -4/Factory | Repaired Neutron Cannon 29340 | -4/Factory | Build established: Scavenger-Gunner 29426 | -4/Factory | Lost 7 parts (2p3n2u) 29721 | -4/Factory | First assault squad dispatched 29784 | -4/Factory | Core integrity fell below 50% 29822 | -4/Factory | Core integrity fell below 20% 29833 | -4/Factory | Destroyed by S-27 Virus with Autogun Last Messages --------------- Myomer Leg destroyed. Fusion Modulator explodes. Neutron Cannon destroyed. Adv. Heat Sink destroyed. Com. Wheel destroyed. System corrupted: Heat flow error (+157). Acquired 6 matter. Penetrated by Slug. Adv. Heat Sink destroyed. Wheel destroyed. U-05 Engineer lays Concrete. Knocked back. U-05 Engineer lays Concrete. Adv. Targeting Computer destroyed. U-05 Engineer lays Concrete. Rnf. Antimatter Reactor destroyed. U-05 Engineer lays Concrete. U-05 Engineer builds a Wall. U-05 Engineer lays Concrete. U-05 Engineer builds a Wall. Map ----- +----------------------------------------------------+ | ??????????????????????????""G""??????????????????? | | ??????????????????????????""?""??????????????????? | | ?????????????????????????????????????????????????? | | ?????????????????????????????????????????????????? | | ?????????????????????????????????????????????????? | | ?????????????????????????????????????????????????? | | ?????????????????????????????????????????????????? | | ?????????????????????????????????????????????????? | | ?????????????????????????????????????????????????? | | ?????????????????????????????????????????????????? | | ????????????????????? ????????????????????????? | | ??????????????????? ????????????????????????? | | ???????????????? ????????????????????????? | | ?????????????? ;#???????????????????????? | | ???????????? ;#???????????????????????? | | ???????????? ;#???????????????????????? | | ??????????? ;##########+##???????????? | | ??????????? ; """ #???????????? | | ??????????#" # ""T"" +???????????? | | ?????????? #u"" "" #???????????? | | ?????????? ;u #???????????? | | ????????? H R ; #???????????? | | ????????? w # ????????????? | | ???????? u usu ; ??????????????? | | ???????? s #sg """""???????????????? | | ???????? ig;@ """""???????????????? | | ???????????????#### sg#l """""???????????????? | | ??????????????????# %#% """"????????????????? | | ??????????????????# %# ???????????????? | | ??????????????????# ###########??????????????? | | ??????????????????# #????????????????????????? | | ??????????????????# ###########??????????????? | | ??????????????????# ##############+########### | | ??????????????????# # ######### | | ??????????????????# # ### | | ??????????????????# # " ### | | ??????????????????# /% "%" + + """ | | ??????????????????# # ! =" ### | | ???????????????#### # % ### """ | | ???????? # ### [ | | ??????? %# ######### | | ???????? # ######### | | ????????"""" """ " "" ##################???????? | | ??????????"" """ "R"" ###############??????????? | | ?????????????""" """ # #???????????? | | ????????????? # #???????????? | | ????????????? # #???????????? | | ?????????????###### # #???????????? | | ????????????????? # # #???????????? | | ????????????????? # # #???????????? | +----------------------------------------------------+ Best States ------------- Heat Dissipation 146 Energy Generation 55 Energy Capacity 800 Matter Stores 300 Matter Capacity 300 Sight Range 16 Robot Scan Range 18 Terrain Scan Density 10 Cloak Strength 2 Base Temperature (-) 200 Armor Coverage 600 Resistance: KI 20 Resistance: TH 10 Weapon Cycling 20 Evasion (%) 40 Targeting Accuracy 16 Core Analysis 6 Armor Integrity Analysis 30 Recoil Reduction 4 Particle Charging 20 Salvage Targeting 2 Defensive Hacking 10 Item Schematics ----------------- Huge Storage Unit | -8/Materials | Scanalyzed Hvy. Armor Plating | -8/Materials | Scanalyzed Combat Drone Bay | -6/Data Miner | Free Lgt. Regenerative Plating | -6/Data Miner | Free Exp. Cesium-ion Thruster | -6/Data Miner | Free Imp. Matter Compressor | -6/Data Miner | Free Imp. KE Penetrator | -6/Data Miner | Free Myomer Leg | -6/Data Miner | Free Adv. Reaction Control System | -6/Data Miner | Free Force Lance | -6/Data Miner | Free Robot Schematics ------------------ M-22 Extractor | -6/Data Miner | Free S-27 Virus | -6/Data Miner | Free G-50 Soldier | -6/Data Miner | Free I-47 Archangel | -6/Data Miner | Free Fabricated ------------ Nothing Repaired ---------- Lgt. Treads | 7% | -10/Materials Imp. Ion Engine | 11% | -8/Materials Lgt. Armor Plating | 12% | -8/Materials Lgt. Treads | 29% | -7/Factory Huge Storage Unit | 22% | -7/Factory Neutron Cannon | 1% | -4/Factory Alien Tech Used ----------------- None Achievements -------------- Charge!!! Gun Specialist Reappropriation Challenges ------------ None Game ------ Seed PhaseAntimatterBarrier Manual? 0 Play Time 03:20:54 Cumulative 37.1 hours Start 2025.07.28 @ 12:24:08 End 2025.07.29 @ 12:48:18 Sessions 5 Manual Loads 0 Difficulty Rogue Special Mode None Game No. 24 Rogue 22 Adventurer 0 Explorer 2 Win Type - Total 1 Types 1/0/0/0/0/0/0/0/0/0 Lore% 51 Gallery% 32 Achievement% 34 Wizard Run 0 Options --------- Layout 1 ASCII 0 Keyboard 0 Movement Mouse Keybinds 0 Fullscreen 1 Font 24/Smallcaps Map View 50x35 Zoom Use 0% Tactical HUD 0 Map Filters NONE Filters NONE Steam 1 RUN: ec282dc1-e6f0-4dfe-bec3-b99e8c08de8d